bitfinex/quotes_ETHUSD_20250324
["timestamp","ask_amount","ask_price","bid_price","bid_amount"]
[1742805713581,4.79089,2087.3,2087.0,0.16427514]
[1742805716586,3.0,2087.3,2087.1,4.7912]
[1742805716891,3.8164,2087.4,2087.1,4.7912]
[1742805717094,3.8164,2087.4,2087.2,0.16427514]
[1742805717297,3.8164,2087.4,2087.2,1.1267249]
[1742805718272,8.60713,2087.4,2087.2,1.1267249]
[1742805719200,3.8164,2087.4,2087.2,1.1267249]
[1742805721005,3.0,2087.4,2087.2,1.1267249]
[1742805721497,7.79068,2087.4,2087.2,1.1267249]
[1742805722683,12.58151,2087.4,2087.2,1.1267249]
[1742805723006,3.0,2087.4,2087.2,1.1267249]
[1742805723301,7.79071,2087.4,2087.2,1.1267249]
[1742805724394,4.79087,2087.3,2087.2,0.16427514]
[1742805724600,4.79179,2086.9,2086.6,0.423]
[1742805724911,5.58129,2086.9,2086.8,0.97793175]
[1742805725893,5.58129,2086.9,2086.8,1.12479876]
[1742805726472,8.58129,2086.9,2086.8,1.12479876]
[1742805726675,11.463013,2086.9,2086.8,1.12479876]
[1742805727493,17.533013,2086.9,2086.8,1.12479876]
[1742805727689,14.65129,2086.9,2086.8,1.12479876]
[1742805728006,13.86179,2086.9,2086.8,1.12479876]
[1742805730911,9.07,2086.9,2086.8,1.12479876]
[1742805731289,13.86179,2086.9,2086.8,1.12479876]
[1742805731692,17.549643,2086.9,2086.8,1.12479876]
[1742805732780,17.549643,2086.9,2086.8,0.14686701]
[1742805733211,4.79248,2086.6,2086.5,4.99368628]
[1742805733388,5.54858,2086.6,2086.5,4.99368628]
[1742805733590,5.54858,2086.6,2086.5,5.13231335]
[1742805733783,4.54858,2086.6,2086.5,5.13231335]
[1742805735090,15.790477,2086.6,2086.5,5.13231335]
[1742805735399,15.790477,2086.6,2086.5,4.99368628]
[1742805735799,15.790477,2086.6,2086.5,5.13378199]
[1742805737515,13.61858,2086.6,2086.5,5.13378199]
[1742805738011,13.61858,2086.6,2086.5,5.13412762]
[1742805740413,14.16858,2086.6,2086.5,4.99368628]
[1742805742296,14.16858,2086.6,2086.5,6.28e-06]
[1742805743687,4.79418,2085.9,2085.6,1.39954862]
[1742805743900,4.79418,2085.9,2085.6,2.95607848]
[1742805744116,4.79418,2085.9,2085.7,0.14057096]
[1742805745398,4.79432,2085.8,2085.7,0.14057096]
[1742805745919,4.79421,2085.9,2085.7,0.14057096]
[1742805746083,4.79432,2085.8,2085.7,0.14057096]
[1742805746721,5.60072,2085.8,2085.7,0.14057096]
[1742805746931,4.79476,2085.7,2085.4,0.423]
[1742805747333,4.79476,2085.7,2085.4,0.944838]
[1742805747535,4.79476,2085.7,2085.4,5.740068]
[1742805747815,4.79476,2085.7,2085.4,6.67624474]
[1742805748016,9.58948,2085.7,2085.4,1.88101474]
[1742805748223,4.79472,2085.7,2085.4,0.944838]
[1742805749317,3.0,2085.9,2085.6,4.79457]
[1742805749502,7.79421,2085.9,2085.5,5.8484948]
[1742805750118,12.58843,2085.9,2085.5,5.8484948]
[1742805750421,12.58846,2085.9,2085.5,5.8484948]
[1742805750613,7.79421,2085.9,2085.5,5.8484948]
[1742805750924,4.79445,2085.8,2085.6,1.15884428]
[1742805751219,4.79445,2085.8,2085.4,10.535068]
[1742805751433,4.79445,2085.8,2085.4,5.739948]
[1742805752332,4.79463,2085.7,2085.4,0.944838]
[1742805753712,4.79463,2085.7,2085.3,5.76041539]
[1742805753713,4.79478,2085.6,2085.5,0.13250022]
[1742805754101,4.79478,2085.6,2085.3,0.96508539]
[1742805754304,4.79463,2085.7,2085.5,0.13250022]
[1742805754521,4.7944,2085.8,2085.5,0.423]
[1742805754725,3.0,2085.9,2085.7,4.79449]
[1742805754926,3.0,2085.9,2085.7,5.795717]
[1742805755224,4.79427,2085.9,2085.8,0.13375364]
[1742805755407,4.79436,2085.8,2085.5,5.21798]
[1742805755827,4.79436,2085.8,2085.6,0.13375364]
[1742805756332,9.58854,2085.9,2085.6,0.13375364]
[1742805756531,4.79441,2085.8,2085.6,1.148441]
[1742805757028,4.79455,2085.7,2085.6,0.13375364]
[1742805757229,4.79441,2085.8,2085.3,0.423]
[1742805757434,4.79439,2085.8,2085.5,0.93695527]
[1742805758004,4.79439,2085.8,2085.6,0.13375364]
[1742805758426,4.79455,2085.7,2085.6,0.13375364]
[1742805759409,4.79489,2085.6,2085.3,0.77611369]
[1742805759610,9.58989,2085.6,2085.3,1.78921406]
[1742805759932,4.79489,2085.6,2085.3,1.78921406]
[1742805760133,4.79455,2085.7,2085.3,6.58450406]
[1742805760336,4.79455,2085.7,2085.4,0.95193733]
[1742805760528,4.79496,2085.6,2085.4,0.95193733]
[1742805760728,4.79501,2085.5,2085.4,0.95193733]
[1742805761308,4.79481,2085.6,2085.4,0.95193733]
[1742805761644,4.79501,2085.5,2085.4,0.95193733]
[1742805763042,4.79524,2085.4,2085.3,0.35311369]
[1742805763334,9.1428705,2085.4,2085.3,0.35311369]
[1742805763538,7.79547,2085.3,2085.2,0.35311369]
[1742805763909,6.07,2085.4,2085.2,5.14863369]
[1742805764118,6.07,2085.4,2085.2,5.70579706]
[1742805764321,6.07,2085.4,2085.3,4.79547]
[1742805764710,6.07,2085.4,2085.2,0.35311369]
[1742805764939,10.86531,2085.4,2085.2,0.35311369]
[1742805765146,10.86531,2085.4,2085.3,0.35311369]
[1742805765332,15.431341,2085.4,2085.3,0.35311369]
[1742805766218,15.431341,2085.4,2085.1,4.79592]
[1742805766423,13.635,2085.4,2085.1,4.79592]
[1742805766748,18.43026,2085.4,2085.2,0.11447843]
[1742805767509,18.43026,2085.4,2085.0,9.94511369]
[1742805767710,18.43026,2085.4,2085.3,0.11447843]
[1742805767915,23.22567,2085.4,2085.0,5.14907369]
[1742805768156,18.43026,2085.4,2085.0,9.94513369]
[1742805768355,18.43026,2085.4,2085.1,0.11478074]
[1742805768531,18.43026,2085.4,2085.1,4.91069074]
[1742805768728,18.43026,2085.4,2085.1,0.11478074]
[1742805769036,9.59118,2085.3,2085.1,0.11478074]
[1742805769232,4.79554,2085.3,2085.1,0.11478074]
[1742805769837,18.43025,2085.4,2085.1,0.11478074]
[1742805770047,23.22569,2085.4,2085.1,0.11478074]
[1742805770235,18.43025,2085.4,2085.1,4.91064074]
[1742805770434,18.43025,2085.4,2085.2,4.79557]
[1742805770435,13.635,2085.4,2085.2,4.79557]
[1742805770652,18.43027,2085.4,2085.1,5.91662218]
[1742805770965,18.43027,2085.4,2085.1,1.00599144]
[1742805771130,0.0478295,2085.3,2085.2,0.11491032]
[1742805771333,4.79561,2085.3,2085.0,0.35311369]
[1742805771559,4.79561,2085.3,2085.1,0.11491032]
[1742805772148,4.7957,2085.2,2085.1,0.11491032]
[1742805773756,4.7957,2085.2,2084.9,0.35311369]
[1742805774048,4.79561,2085.3,2085.0,0.11491032]
[1742805774267,18.43032,2085.4,2085.0,4.91097032]
[1742805774636,23.22572,2085.4,2085.0,4.91097032]
[1742805774952,18.43027,2085.4,2085.0,0.46802401]
[1742805775135,4.79555,2085.3,2085.0,0.46802401]
[1742805775336,18.43027,2085.4,2085.0,6.47378554]
[1742805775853,18.43027,2085.4,2085.1,0.423]
[1742805776219,18.43027,2085.4,2085.2,0.11676715]
[1742805776420,18.43027,2085.4,2085.2,4.91230715]
[1742805776421,13.635,2085.4,2085.2,4.91230715]
[1742805776622,9.07,2085.4,2085.2,4.91230715]
[1742805777155,9.07,2085.4,2085.2,0.11676715]
[1742805778565,13.86528,2085.4,2085.2,0.11676715]
[1742805779050,9.07,2085.4,2085.2,0.11676715]
[1742805782359,4.79434,2085.8,2085.5,5.44445977]
[1742805782522,9.58888,2085.8,2085.5,0.64956977]
[1742805782718,0.8259,2085.7,2085.5,0.11616252]
[1742805782929,4.79478,2085.6,2085.4,0.35311369]
[1742805783129,4.79478,2085.6,2085.5,0.11616252]
[1742805783461,7.79478,2085.6,2085.5,0.11616252]
[1742805784828,4.79534,2085.4,2085.2,0.35311369]
[1742805786046,4.79534,2085.4,2085.3,0.1159466]
[1742805787428,4.79534,2085.4,2085.3,0.46906029]
[1742805788632,4.79534,2085.4,2085.3,0.1159466]
[1742805790244,4.79534,2085.4,2085.1,0.96157817]
[1742805790445,9.59121,2085.3,2085.1,0.96157817]
[1742805790656,4.79554,2085.3,2084.9,5.21938]
[1742805791170,4.79554,2085.3,2085.0,0.95840876]
[1742805791538,4.79593,2085.1,2085.0,0.95840876]
[1742805791760,4.79593,2085.1,2084.7,5.2197]
[1742805791939,4.79593,2085.1,2084.7,8.88227279]
[1742805792474,4.79593,2085.1,2084.7,13.67902279]
[1742805792771,4.79593,2085.1,2084.8,4.79661]
[1742805792943,9.59164,2085.2,2084.9,0.96064625]
[1742805793450,4.79647,2084.9,2084.7,0.423]
[1742805794766,4.79623,2085.0,2084.7,0.423]
[1742805795558,4.79647,2084.9,2084.7,0.423]
[1742805795753,4.79647,2084.9,2084.5,5.22023]
[1742805796066,4.79647,2084.9,2084.7,0.94422084]
[1742805796067,9.59308,2084.9,2084.7,0.94422084]
[1742805796434,4.79662,2084.8,2084.5,0.423]
[1742805797041,7.79645,2084.9,2084.6,0.96861882]
[1742805798244,12.59301,2084.9,2084.6,0.96861882]
[1742805798451,4.79667,2084.8,2084.6,0.96861882]
[1742805799280,6.07,2085.0,2084.6,2.07953537]
[1742805799489,6.07,2085.0,2084.9,4.79639]
[1742805799675,6.07,2085.0,2084.8,4.79653]
[1742805800279,6.07,2085.0,2084.8,9.59305]
[1742805800653,6.07,2085.0,2084.9,4.79639]
[1742805800843,6.07,2085.0,2084.9,5.33823057]
[1742805801043,6.07,2085.0,2084.9,6.83138863]
[1742805801244,11.63877,2085.5,2085.1,4.79576]
[1742805801478,3.0,2085.4,2085.2,4.79556]
[1742805801881,3.0,2085.4,2085.3,0.11884057]
[1742805802081,7.79524,2085.4,2085.3,0.11884057]
[1742805802373,4.79578,2085.2,2084.9,0.423]
[1742805802543,4.79578,2085.2,2084.9,5.21932]
[1742805802743,4.79578,2085.2,2085.0,0.11801978]
[1742805802966,4.79578,2085.2,2085.0,1.09027668]
[1742805803676,4.79548,2085.3,2085.0,1.09027668]
[1742805803879,9.5911,2085.3,2085.0,1.09027668]
[1742805804550,4.79571,2085.2,2085.0,1.09027668]
[1742805804751,4.79548,2085.3,2085.0,1.09027668]
[1742805805075,9.98655695,2085.4,2085.0,1.09027668]
[1742805805268,8.59525,2085.4,2085.0,5.88623668]
[1742805805461,8.59525,2085.4,2085.0,10.68221668]
[1742805805844,13.39065,2085.4,2085.0,5.88623668]
[1742805806050,3.0,2085.4,2085.0,1.09027668]
[1742805806252,4.7958,2085.2,2085.0,0.11801978]
[1742805806555,4.79593,2085.1,2084.7,10.01641]
[1742805806788,9.59203,2085.1,2084.8,0.11741508]
[1742805806956,4.79593,2085.1,2084.8,0.11741508]
[1742805807698,1.645036,2085.1,2084.8,0.11741508]
[1742805807857,4.79616,2085.0,2084.8,0.11741508]
[1742805808278,6.07,2085.2,2084.8,0.11741508]
[1742805808556,6.07,2085.2,2085.0,4.79612]
[1742805808753,9.07,2085.2,2085.1,0.11823582]
[1742805809185,9.07,2085.2,2084.9,9.59255]
[1742805809379,9.07,2085.2,2085.0,0.11823582]
[1742805809883,4.79593,2085.1,2085.0,0.11823582]
[1742805810186,13.8657,2085.2,2084.8,10.01608]
[1742805810398,9.07,2085.2,2084.9,4.91426025]
[1742805810894,9.07,2085.2,2085.0,4.79607]
[1742805811192,9.07,2085.2,2085.0,4.79605]
[1742805811394,9.07,2085.2,2085.1,0.11789025]
[1742805811581,9.07,2085.2,2084.8,9.75449]
[1742805811894,9.07,2085.2,2084.9,0.11789025]
[1742805812093,13.86585,2085.2,2084.9,0.11789025]
[1742805812583,18.66168,2085.2,2084.9,0.11789025]
[1742805812984,13.86583,2085.2,2084.9,4.91421025]
[1742805813496,10.86583,2085.2,2084.9,4.91421025]
[1742805813699,10.86581,2085.2,2084.9,0.11789025]
[1742805815386,15.66173,2085.2,2084.9,0.11789025]
[1742805815588,10.86581,2085.2,2084.9,0.11789025]
[1742805816160,11.68342,2085.2,2084.9,0.11789025]
[1742805816366,9.59211,2085.1,2084.7,5.74461788]
[1742805816561,4.79601,2085.1,2084.8,0.11789025]
[1742805816766,9.5921,2085.1,2084.8,0.11789025]
[1742805818501,6.8877,2085.2,2084.8,0.11789025]
[1742805818706,4.796,2085.1,2084.8,0.11789025]
[1742805819806,4.79618,2085.0,2084.8,0.11789025]
[1742805819981,4.796,2085.1,2084.8,0.11789025]
[1742805820571,11.6834,2085.2,2084.8,4.91443025]
[1742805820874,4.79603,2085.1,2084.8,4.91443025]
[1742805821371,9.59212,2085.1,2084.8,0.11789025]
[1742805821801,4.79603,2085.1,2084.8,0.11789025]
[1742805822303,7.7956,2085.3,2084.9,5.21931]
[1742805823004,7.7956,2085.3,2085.0,0.11801983]
[1742805823301,3.0,2085.3,2085.1,4.79593]
[1742805823499,7.79552,2085.3,2085.0,0.11801983]
[1742805823695,7.79552,2085.3,2085.2,0.11754467]
[1742805824004,7.79552,2085.3,2084.9,6.02735313]
[1742805824200,7.79552,2085.3,2085.0,0.11754467]
[1742805824704,4.79581,2085.2,2085.0,0.11754467]
[1742805827316,4.79593,2085.1,2085.0,0.11754467]
[1742805827677,9.59201,2085.1,2084.7,5.74479788]
[1742805827872,4.7962,2085.0,2084.7,7.29357167]
[1742805828100,4.79635,2085.0,2084.7,0.94795788]
[1742805828401,4.79596,2085.1,2084.7,5.74467788]
[1742805828593,9.59204,2085.1,2084.7,5.74467788]
[1742805828797,4.79621,2085.0,2084.7,5.74467788]
[1742805830824,4.79621,2085.0,2084.8,0.11732869]
[1742805832393,4.79639,2084.9,2084.8,0.11732869]
[1742805832899,4.79621,2085.0,2084.8,0.11732869]
[1742805833094,9.59258,2085.0,2084.8,0.11732869]
[1742805833297,4.79621,2085.0,2084.8,0.11732869]
[1742805834214,9.59257,2085.0,2084.8,0.11732869]
[1742805834377,4.79621,2085.0,2084.8,0.11732869]
[1742805835310,4.79596,2085.1,2084.8,0.11732869]
[1742805835611,11.6406,2085.2,2084.8,1.12653935]
[1742805835812,11.6406,2085.2,2084.8,0.54032869]
[1742805836106,11.6406,2085.2,2084.8,5.33680869]
[1742805836687,16.43646,2085.2,2084.8,5.33680869]
[1742805836884,4.79596,2085.1,2084.8,0.54032869]
[1742805839991,4.79596,2085.1,2084.8,5.33691869]
[1742805840401,4.79596,2085.1,2084.8,0.54032869]
[1742805841315,9.59204,2085.1,2084.8,0.54032869]
[1742805841616,4.79596,2085.1,2084.8,0.54032869]
[1742805841779,4.79596,2085.1,2084.8,0.11732869]
[1742805842496,4.79596,2085.1,2084.8,4.91388869]
[1742805843204,11.64062,2085.2,2084.8,9.71039869]
[1742805843514,16.43649,2085.2,2084.8,4.91383869]
[1742805844507,4.79617,2085.0,2084.8,0.11732869]
[1742805844827,6.07,2085.2,2084.9,0.423]
[1742805844989,6.07,2085.2,2085.0,0.11810617]
[1742805846119,7.79526,2085.4,2085.1,4.79573]
[1742805846802,3.0,2085.4,2085.2,0.11810617]
[1742805847009,3.0,2085.4,2085.2,4.91376617]
[1742805847919,3.0,2085.4,2085.2,0.11810617]
[1742805848114,7.79524,2085.4,2085.2,0.11810617]
[1742805848419,3.0,2085.4,2085.2,0.11810617]
[1742805848988,7.8431495,2085.4,2085.2,0.11810617]
[1742805849188,3.0,2085.4,2085.3,4.79547]
[1742805849504,3.0,2085.4,2085.3,0.116724]
[1742805851421,7.79524,2085.4,2085.3,0.116724]
[1742805851628,7.8430695,2085.4,2085.3,0.116724]
[1742805851790,7.79524,2085.4,2085.3,0.116724]
[1742805854725,3.0,2085.4,2085.3,0.116724]
[1742805856121,7.79524,2085.4,2085.3,0.116724]
[1742805858317,3.0,2085.4,2085.3,0.116724]
[1742805860195,7.79524,2085.4,2085.3,0.116724]
[1742805862128,3.0,2085.4,2085.3,0.116724]
[1742805862331,10.86509,2085.5,2085.3,0.116724]
[1742805863803,10.86354,2086.2,2085.3,5.24501489]
[1742805864007,10.86354,2086.2,2085.6,4.79463]
[1742805864008,4.79398,2086.0,2085.6,4.79463]
[1742805864219,4.79398,2086.0,2085.7,0.11590341]
[1742805864418,3.0,2086.0,2085.7,4.91036341]
[1742805864632,3.0,2086.1,2085.7,5.97252623]
[1742805864826,3.0,2086.1,2085.7,10.49252623]
[1742805865127,3.0,2086.1,2085.7,15.28694623]
[1742805865333,3.0,2086.1,2085.8,4.79428]
[1742805865935,3.0,2086.1,2085.9,0.11590341]
[1742805866541,7.79377,2086.1,2085.9,0.11590341]
[1742805866837,7.8415995,2086.1,2085.7,9.73754]
[1742805867014,7.8415995,2086.1,2085.8,0.11365827]
[1742805867214,7.8415995,2086.1,2085.7,9.73754]
[1742805867215,7.8415995,2086.1,2085.7,9.73746]
[1742805867404,7.8415995,2086.1,2085.8,0.11365827]
[1742805867606,7.8415995,2086.1,2085.7,9.73746]
[1742805867906,12.6354195,2086.1,2085.8,0.11365827]
[1742805868106,12.58759,2086.1,2085.8,0.11365827]
[1742805868306,7.79367,2086.1,2085.8,4.79425]
[1742805868528,3.0,2086.1,2085.9,0.11365827]
[1742805868723,7.79363,2086.1,2085.9,0.11365827]
[1742805868907,6.07,2086.2,2085.9,4.90756827]
[1742805869101,6.07,2086.2,2086.1,4.79363]
[1742805869307,9.58526,2086.6,2086.2,4.7933]
[1742805869632,4.79294,2086.4,2086.3,0.11396044]
[1742805869808,4.79277,2086.5,2086.1,5.21647]
[1742805870003,4.79277,2086.5,2086.2,0.11339929]
[1742805870226,4.79317,2086.3,2086.2,0.11339929]
[1742805870433,4.79317,2086.3,2085.8,4.79429]
[1742805870434,4.79345,2086.2,2085.9,4.79398]
[1742805870624,4.79345,2086.2,2086.0,0.11335613]
[1742805871632,9.58652,2086.3,2086.0,0.11335613]
[1742805871837,4.79317,2086.3,2086.0,0.11335613]
[1742805873234,4.79317,2086.3,2086.0,0.53635613]
[1742805873534,9.5865,2086.3,2086.0,0.11335613]
[1742805873744,4.79317,2086.3,2086.0,0.11335613]
[1742805873955,5.55186,2086.6,2086.2,4.79325]
[1742805874119,3.0,2086.5,2086.2,4.79325]
[1742805874319,7.79271,2086.5,2086.3,0.10942765]
[1742805874843,3.0,2086.6,2086.3,0.10942765]
[1742805875049,3.0,2086.6,2086.3,9.58618]
[1742805875220,3.0,2086.6,2086.4,0.10942765]
[1742805875415,11.3659,2086.8,2086.5,5.21562]
[1742805875416,6.07,2086.8,2086.5,5.21562]
[1742805875620,3.0,2086.7,2086.6,0.10908242]
[1742805876659,3.0,2086.7,2086.4,4.79284]
[1742805876837,3.0,2086.7,2086.5,0.10834888]
[1742805876838,3.7666,2086.7,2086.5,0.10834888]
[1742805877021,3.7666,2086.7,2086.3,0.423]
[1742805877022,4.79272,2086.5,2086.2,9.34622]
[1742805877218,4.79272,2086.5,2086.3,0.10834888]
[1742805877718,4.79275,2086.5,2086.3,0.10834888]
[1742805879414,0.0478295,2086.4,2086.3,0.10834888]
[1742805879719,4.79342,2086.2,2085.8,4.79423]
[1742805879919,4.79342,2086.2,2085.7,9.76942]
[1742805879920,4.79364,2086.1,2085.7,9.76942]
[1742805880158,4.79364,2086.1,2085.9,0.10834888]
[1742805880325,4.79364,2086.1,2085.7,14.56386]
[1742805880523,4.79364,2086.1,2086.0,0.10834888]
[1742805880723,9.58747,2086.1,2085.7,9.76942]
[1742805880953,4.79364,2086.1,2086.0,0.10834888]
[1742805881131,4.79364,2086.1,2085.7,14.56387]
[1742805881334,4.79364,2086.1,2086.0,0.10834888]
[1742805881849,4.79364,2086.1,2085.7,14.56387]
[1742805882058,4.79364,2086.1,2085.8,0.10834888]
[1742805882222,4.79364,2086.1,2085.7,14.56387]
[1742805882418,4.79364,2086.1,2085.8,0.10834888]
[1742805882721,4.8418495,2086.0,2085.5,36.51773]
[1742805882921,4.79409,2085.9,2085.7,4.549]
[1742805883253,4.79409,2085.9,2085.5,36.51772]
[1742805883440,4.79442,2085.8,2085.5,26.505]
[1742805885368,4.79442,2085.8,2085.5,4.79499]
[1742805885828,4.79442,2085.8,2085.4,9.34424]
[1742805886246,4.79442,2085.8,2085.4,10.89949447]
[1742805886853,4.7947,2085.7,2085.4,1.55525447]
[1742805887153,4.79478,2085.6,2085.3,9.7673]
[1742805887325,5.5562,2085.7,2085.3,9.7673]
[1742805887527,5.5562,2085.7,2085.3,14.56261]
[1742805887923,0.7615,2085.7,2085.4,4.79515]
[1742805888144,3.0,2085.8,2085.6,4.7947]
[1742805888423,6.07,2085.9,2085.6,4.7947]
[1742805888424,6.07,2085.9,2085.8,4.79432]
[1742805888756,0.7625,2086.3,2085.8,4.79412]
[1742805888757,11.62576,2086.3,2085.8,4.79412]
[1742805888963,3.0,2086.2,2085.9,4.79402]
[1742805889164,11.62576,2086.3,2085.9,4.79402]
[1742805889569,3.0,2086.2,2085.9,4.79402]
[1742805889769,7.7934,2086.2,2085.9,4.79402]
[1742805890969,7.7934,2086.2,2086.0,0.11219003]
[1742805891347,3.0,2086.2,2086.0,0.11219003]
[1742805891674,6.8278,2086.7,2086.4,4.79294]
[1742805891848,11.62018,2086.7,2086.2,5.21617]
[1742805892049,11.62018,2086.7,2086.3,0.11059306]
[1742805892050,3.0,2086.6,2086.3,0.11059306]
[1742805892437,7.79257,2086.6,2086.3,0.11059306]
[1742805892838,4.79272,2086.5,2086.3,0.11059306]
[1742805893032,9.58521,2086.6,2086.3,0.11059306]
[1742805893250,9.58524,2086.6,2086.3,0.11059306]
[1742805893873,4.7928,2086.5,2086.3,0.11059306]
[1742805894041,4.79257,2086.6,2086.3,0.11059306]
[1742805894364,4.79275,2086.5,2086.3,0.11059306]
[1742805894570,9.58528,2086.6,2086.3,0.11059306]
[1742805895068,4.79273,2086.5,2086.3,0.11059306]
[1742805895871,9.58563,2086.5,2086.3,0.11059306]
[1742805896167,4.79273,2086.5,2086.3,0.11059306]
[1742805896858,4.79272,2086.5,2086.3,0.11059306]
[1742805897054,4.79256,2086.6,2086.3,0.11059306]
[1742805897271,4.7928,2086.5,2086.3,0.11059306]
[1742805897442,4.7928,2086.5,2086.1,14.13896]
[1742805897642,4.7928,2086.5,2086.2,0.10778789]
[1742805898871,4.7928,2086.5,2086.2,4.90117789]
[1742805899669,4.7928,2086.5,2086.2,0.10778789]
[1742805900184,4.7928,2086.5,2086.2,4.90117789]
[1742805901182,4.79251,2086.6,2086.2,9.69441789]
[1742805901388,4.79251,2086.6,2086.3,4.79315]
[1742805901548,4.79251,2086.6,2086.2,4.90112789]
[1742805901748,9.58519,2086.6,2086.2,4.79334]
[1742805901964,4.79251,2086.6,2086.3,0.10778789]
[1742805902166,6.8278,2086.7,2086.3,0.10778789]
[1742805902379,6.07,2086.7,2086.5,5.2156]
[1742805902702,4.79041,2087.5,2087.0,4.79156]
[1742805902973,4.79049,2087.5,2087.1,4.79113]
[1742805903161,4.79049,2087.5,2087.1,4.89641567]
[1742805903366,6.07,2087.6,2087.2,6.21441657]
[1742805903663,6.07,2087.6,2087.3,4.89602254]
[1742805903838,10.86022,2087.6,2087.3,4.89602254]
[1742805904061,6.07,2087.6,2087.4,5.21355]
[1742805904390,10.8602,2087.6,2087.5,0.10360393]
[1742805904590,5.6224,2087.6,2087.5,0.10360393]
[1742805904894,4.79092,2087.3,2087.0,4.552]
[1742805905206,4.79071,2087.4,2087.0,9.34354]
[1742805905388,4.78879666,2087.4,2087.1,0.10360393]
[1742805905597,9.58114,2087.5,2087.1,4.89488393]
[1742805905889,4.79066,2087.4,2087.1,4.89488393]
[1742805906193,0.8322,2087.6,2087.1,6.36090032]
[1742805906489,5.62246,2087.6,2087.2,4.79095]
[1742805906857,0.8322,2087.6,2087.3,4.89445393]
[1742805907060,10.85973,2087.8,2087.4,9.58106]
[1742805907260,10.85973,2087.8,2087.4,4.79045]
[1742805907477,4.8378695,2087.7,2087.5,0.10360393]
[1742805907711,4.8378695,2087.7,2087.3,5.21383]
[1742805907894,4.79023,2087.6,2087.3,1.14710464]
[1742805908575,10.85984,2087.8,2087.4,4.79064]
[1742805908776,0.7968,2087.9,2087.7,4.78981]
[1742805908995,3.0,2088.0,2087.6,4.79005]
[1742805909180,3.0,2088.0,2087.7,4.78983]
[1742805909370,7.78927,2088.0,2087.6,4.79013]
[1742805909595,4.78953,2087.9,2087.6,1.455953]
[1742805909984,7.78927,2088.0,2087.6,6.246043]
[1742805909985,7.7893,2088.0,2087.6,6.246043]
[1742805910175,3.0,2088.0,2087.7,4.78994]
[1742805910575,4.78964,2087.9,2087.6,1.455953]
[1742805910965,4.78981,2087.8,2087.5,4.557]
[1742805911165,4.79002,2087.7,2087.5,4.557]
[1742805911894,5.54088,2087.8,2087.5,4.557]
[1742805912093,4.78996,2087.7,2087.5,4.557]
[1742805912503,5.54085,2087.8,2087.5,4.557]
[1742805912730,0.7511,2087.8,2087.5,9.3474]
[1742805913008,7.78937,2088.0,2087.6,4.79008]
[1742805913305,4.78955,2087.9,2087.5,10.91811346]
[1742805914104,4.7895,2087.9,2087.5,10.91811346]
[1742805914283,7.78933,2088.0,2087.5,10.91809346]
[1742805914678,4.78951,2087.9,2087.5,15.70836346]
[1742805914877,4.78951,2087.9,2087.5,10.91806346]
[1742805915218,4.7895,2087.9,2087.5,10.91801346]
[1742805915704,4.7895,2087.9,2087.5,6.12779346]
[1742805915895,4.78983,2087.8,2087.5,6.12779346]
[1742805916072,4.7895,2087.9,2087.5,10.91812346]
[1742805916270,7.78927,2088.0,2087.6,4.79012]
[1742805916271,3.0,2088.0,2087.6,4.79012]
[1742805916498,7.78928,2088.0,2087.6,4.79001]
[1742805916803,7.78928,2088.0,2087.0,31.82641]
[1742805916804,4.79051,2087.5,2087.2,4.551]
[1742805916992,4.79051,2087.5,2087.1,4.79123]
[1742805917191,4.79051,2087.5,2087.0,31.036]
[1742805917192,4.79067,2087.4,2087.0,26.485]
[1742805917393,4.79067,2087.4,2087.0,31.04]
[1742805918078,4.79067,2087.4,2087.0,4.555]
[1742805918393,4.79067,2087.4,2087.1,0.976977]
[1742805918903,6.07,2087.6,2087.1,0.976977]
[1742805919110,4.7911,2087.2,2086.9,0.423]
[1742805919311,4.7911,2087.2,2086.9,4.975]
[1742805920505,9.58237,2087.2,2086.9,4.975]
[1742805920705,4.79153,2087.1,2086.9,4.552]
[1742805920904,4.79146,2087.1,2086.9,4.552]
[1742805921082,4.79156,2087.0,2086.9,4.552]
[1742805921283,4.79156,2087.0,2086.7,0.423]
[1742805921505,4.79184,2086.9,2086.7,3.1134]
[1742805923424,4.79156,2087.0,2086.7,3.1134]
[1742805923778,4.79225,2086.7,2086.6,26.481]
[1742805923999,4.79251,2086.6,2086.4,4.551]
[1742805924396,4.79225,2086.7,2086.4,4.551]
[1742805924601,4.79225,2086.7,2086.5,0.4974]
[1742805925110,4.79225,2086.7,2086.3,9.76916]
[1742805926309,4.79209,2086.8,2086.4,0.09273802]
[1742805926477,4.79209,2086.8,2086.4,4.88567802]
[1742805926683,9.58428,2086.8,2086.4,0.09273802]
[1742805926982,9.58428,2086.8,2086.4,1.55824882]
[1742805927408,0.7561,2086.9,2086.4,1.55824882]
[1742805927409,4.79232,2086.7,2086.4,1.55824882]
[1742805927592,9.58475,2086.7,2086.4,1.55824882]
[1742805928209,4.79271,2086.5,2086.4,1.55824882]
[1742805928414,4.7926,2086.6,2086.4,0.09273802]
[1742805928712,9.58526,2086.6,2086.4,0.09273802]
[1742805928903,9.58526,2086.6,2086.1,10.12224921]
[1742805929103,4.7926,2086.6,2086.2,4.23777278]
[1742805929412,4.79284,2086.5,2086.2,4.23777278]
[1742805930130,0.7998,2086.3,2086.2,0.09786386]
[1742805930283,6.07,2086.5,2086.3,4.79301]
[1742805930478,6.07,2086.5,2085.8,0.423]
[1742805930479,6.07,2086.5,2086.4,0.09135977]
[1742805930684,6.07,2086.5,2086.2,4.7932]
[1742805930881,6.07,2086.5,2086.3,1.05004177]
[1742805931412,10.86286,2086.5,2086.3,1.05004177]
[1742805931714,10.86286,2086.5,2086.3,0.09135977]
[1742805931915,10.86286,2086.5,2086.1,4.554]
[1742805932112,10.86286,2086.5,2086.4,0.09135977]
[1742805932318,10.86286,2086.5,2086.1,4.554]